bitfinex-derivatives/quotes_ETHF0:USTF0_20250115
["timestamp","ask_amount","ask_price","bid_price","bid_amount"]
[1736923583862,0.30998,3227.4,3227.3,40.8]
[1736923584265,3.88764021,3227.4,3227.3,40.8]
[1736923584457,3.57766021,3227.4,3227.3,41.10999]
[1736923584956,3.44392861,3227.6,3227.3,40.8]
[1736923585267,3.2078,3227.7,3227.3,40.8]
[1736923585570,3.2078,3227.7,3227.6,0.30996]
[1736923585865,6.53665377,3227.7,3227.6,0.30996]
[1736923590061,6.53665377,3227.7,3227.3,40.8]
[1736923590371,0.80337,3227.6,3227.4,0.30998]
[1736923590763,3.54445565,3227.5,3227.4,0.30998]
[1736923594373,6.29098486,3227.5,3227.3,41.10999]
[1736923594567,5.98100486,3227.5,3227.3,40.8]
[1736923594770,5.98100486,3227.5,3227.4,0.30998]
[1736923596476,3.54445565,3227.5,3227.4,0.30998]
[1736923599278,3.54445565,3227.5,3227.3,40.8]
[1736923599472,3.85443565,3227.5,3227.3,41.10999]
[1736923599779,3.85443565,3227.5,3227.3,0.30999]
[1736923600170,3.85443565,3227.5,3227.4,40.8]
[1736923600576,3.85443565,3227.5,3226.9,3.2078]
[1736923600577,3.54445565,3227.5,3227.0,0.31002]
[1736923600778,0.31,3227.2,3227.0,0.31002]
[1736923601077,2.92994921,3227.6,3227.1,41.11001]
[1736923601078,0.30999,3227.3,3227.1,41.11001]
[1736923601280,0.4826,3227.2,3227.1,41.11001]
[1736923601480,4.1350804,3227.2,3227.1,41.11001]
[1736923602174,3.1918804,3227.2,3227.1,41.11001]
[1736923602576,3.42233739,3227.3,3227.1,40.8]
[1736923602777,3.42233739,3227.3,3227.2,0.31]
[1736923602977,0.30999,3227.4,3227.2,0.31]
[1736923603483,3.42233739,3227.3,3227.2,0.31]
[1736923604081,3.73233739,3227.3,3227.1,41.11001]
[1736923604476,0.31,3227.3,3227.2,0.31]
[1736923604676,3.55317841,3227.4,3227.2,0.31]
[1736923604872,3.24318841,3227.3,3227.2,0.31]
[1736923605084,0.30999,3227.4,3227.2,0.31]
[1736923605283,0.30999,3227.4,3227.1,40.8]
[1736923605582,0.30999,3227.3,3227.2,0.31]
[1736923605777,3.35370562,3227.3,3227.2,0.31]
[1736923605985,3.66369562,3227.4,3227.2,0.31]
[1736923606284,0.30999,3227.4,3227.2,0.31]
[1736923606477,3.43328293,3227.3,3227.2,0.31]
[1736923607279,3.74328293,3227.3,3227.1,41.11001]
[1736923607479,3.43328293,3227.3,3227.1,40.8]
[1736923607681,3.86506449,3227.4,3227.2,0.31]
[1736923608082,0.31,3227.3,3227.1,41.11001]
[1736923608380,3.82360431,3227.3,3227.1,41.11001]
[1736923608779,0.9432,3227.5,3227.1,40.8]
[1736923609084,3.82360431,3227.2,3227.1,41.11001]
[1736923609282,5.95015352,3227.3,3227.1,40.8]
[1736923609483,3.35864215,3227.2,3227.1,41.11]
[1736923610790,3.66864215,3227.2,3227.1,41.11001]
[1736923612490,3.35864215,3227.2,3227.1,41.11001]
[1736923614792,3.66864215,3227.2,3227.1,41.11001]
[1736923615585,3.35864215,3227.2,3227.1,41.11001]
[1736923615987,3.66864215,3227.2,3227.1,40.8]
[1736923616188,3.66864215,3227.2,3226.9,0.31003]
[1736923616189,0.31002,3227.0,3226.9,0.31003]
[1736923616385,2.43654921,3226.9,3226.8,0.31004]
[1736923616590,3.38694921,3226.9,3226.8,0.31004]
[1736923616891,6.89878813,3226.9,3226.8,0.31004]
[1736923617089,0.31005,3226.7,3226.6,40.8]
[1736923617696,3.81948199,3226.7,3226.6,40.8]
[1736923618192,3.81948199,3226.7,3226.5,3.2078]
[1736923618193,3.50943199,3226.7,3226.5,3.2078]
[1736923618485,2.93314921,3226.6,3226.0,4.196]
[1736923618691,2.43654921,3226.3,3226.2,0.31009]
[1736923619086,6.94194631,3226.3,3226.2,0.31009]
[1736923620589,6.94194631,3226.3,3226.1,40.8]
[1736923620795,7.25203631,3226.3,3226.1,41.11011]
[1736923620982,7.25203631,3226.3,3226.1,41.1101]
[1736923621693,0.3101,3226.2,3226.1,40.8]
[1736923621894,7.25203631,3226.3,3226.1,41.11011]
[1736923622094,3.43886297,3226.2,3226.1,41.11011]
[1736923622489,3.43886297,3226.2,3226.1,40.8]
[1736923622994,3.74896297,3226.2,3226.1,40.8]
[1736923623995,3.43886297,3226.2,3226.1,40.8]
[1736923624198,3.74896297,3226.2,3226.1,40.8]
[1736923625391,3.43886297,3226.2,3226.1,40.8]
[1736923625594,3.74896297,3226.2,3226.1,40.8]
[1736923627700,3.43886297,3226.2,3226.1,40.8]
[1736923628504,3.43886297,3226.2,3226.1,41.11011]
[1736923630500,3.2078,3226.5,3226.1,40.8]
[1736923630707,3.58969223,3226.4,3226.3,0.31009]
[1736923631002,3.51787,3226.5,3226.3,0.31009]
[1736923631200,3.58969223,3226.4,3226.3,0.31009]
[1736923639608,3.2078,3227.0,3226.2,4.6419]
[1736923639805,3.2078,3227.0,3226.3,0.77523]
[1736923639998,3.51783,3227.0,3226.9,0.31003]
[1736923640409,7.11215776,3227.0,3226.9,0.31003]
[1736923640710,6.80212776,3227.0,3226.3,0.77523]
[1736923640905,7.11215776,3227.0,3226.8,0.31004]
[1736923641109,7.11215776,3227.0,3226.9,0.80983]
[1736923641309,6.80212776,3227.0,3226.9,0.80983]
[1736923641905,3.59432776,3227.0,3226.9,0.80983]
[1736923642915,3.33522835,3227.2,3227.0,0.31002]
[1736923643113,0.9133,3227.3,3227.1,0.31001]
[1736923643314,0.9133,3227.3,3227.2,40.8]
[1736923643717,4.16919016,3227.3,3227.2,41.11]
[1736923645123,4.16919016,3227.3,3227.2,0.31]
[1736923648328,0.30997,3227.6,3227.3,0.30999]
[1736923648724,3.35313471,3227.5,3227.3,0.30999]
[1736923648920,0.30999,3227.4,3227.1,0.31]
[1736923649123,3.23743921,3227.4,3227.1,0.31]
[1736923649317,3.35313471,3227.3,3227.1,0.31]
[1736923649620,0.4836,3227.2,3227.1,0.31]
[1736923649819,0.9358,3227.2,3227.1,0.31]
[1736923650016,4.25993702,3227.2,3227.1,0.31]
[1736923654722,3.32413702,3227.2,3227.1,0.31]
[1736923654929,1.29164,3227.9,3227.6,0.30996]
[1736923655128,0.30995,3227.8,3227.6,0.30996]
[1736923655333,0.30998,3227.5,3227.3,3.51779]
[1736923655527,0.4964,3227.4,3227.3,3.51779]
[1736923655729,4.98753359,3227.4,3227.3,3.51779]
[1736923661233,4.48753359,3227.4,3227.3,3.51779]
[1736923661432,4.48753359,3227.4,3227.3,0.30999]
[1736923666134,4.48753359,3227.4,3227.0,41.11002]
[1736923666135,0.30999,3227.3,3227.0,41.11002]
[1736923666332,2.61686554,3227.1,3227.0,40.8]
[1736923666734,9.34873815,3227.1,3227.0,40.8]
[1736923666943,9.84833815,3227.1,3227.0,40.8]
[1736923667235,9.84833815,3227.1,3226.6,0.31005]
[1736923667236,0.31003,3226.9,3226.6,0.31005]
[1736923667435,2.90554489,3226.8,3226.7,0.31005]
[1736923667743,6.86793424,3226.8,3226.7,41.11005]
[1736923670243,4.42988935,3226.8,3226.7,41.11005]
[1736923671645,3.49258935,3226.8,3226.7,41.11005]
[1736923671944,6.14544489,3227.1,3227.0,0.31002]
[1736923671945,3.7074,3227.1,3227.0,0.31002]
[1736923672336,6.94593101,3227.1,3227.0,0.31002]
[1736923672536,6.94593101,3227.1,3227.0,41.11002]
[1736923672537,6.44633101,3227.1,3227.0,41.11002]
[1736923672848,1.224,3227.5,3227.4,0.30998]
[1736923672849,3.2078,3227.5,3227.4,0.30998]
[1736923673045,0.9182,3227.6,3227.5,0.30997]
[1736923673246,3.35624489,3227.6,3227.5,0.30997]
[1736923673544,6.7165603,3227.6,3227.5,0.30997]
[1736923678643,6.7165603,3227.6,3227.0,44.0078]
[1736923678849,2.43804489,3227.3,3227.0,44.0078]
[1736923679050,2.43804489,3227.3,3227.2,0.31]
[1736923679251,3.2236526,3227.2,3227.1,0.31]
[1736923679647,5.66169749,3227.3,3227.2,0.31]
[1736923679843,2.43804489,3227.3,3227.2,0.31]
[1736923680146,2.43804489,3227.3,3227.0,44.0078]
[1736923680147,5.75539322,3227.3,3227.0,44.31782]
[1736923680339,6.06539322,3227.3,3227.0,44.31782]
[1736923680545,0.31001,3227.2,3227.0,44.31782]
[1736923680746,0.31001,3227.1,3227.0,44.0078]
[1736923680942,3.64515927,3227.1,3227.0,44.0078]
[1736923681147,3.33514927,3227.1,3227.0,44.0078]
[1736923681446,2.43804489,3227.3,3227.0,44.31782]
[1736923681447,2.74804489,3227.3,3227.0,44.31782]
[1736923681647,3.64514927,3227.2,3227.0,44.31782]
[1736923681854,0.31,3227.2,3227.0,44.31782]
[1736923682049,3.24353171,3227.1,3227.0,44.31782]
[1736923682246,3.24353171,3227.1,3227.0,44.0078]
[1736923682447,3.55354171,3227.1,3227.0,44.0078]
[1736923682757,0.31001,3227.1,3227.0,44.0078]
[1736923683053,3.72335789,3227.1,3227.0,44.0078]
[1736923683652,3.41334789,3227.1,3227.0,44.0078]
[1736923683846,3.41334789,3227.1,3227.0,44.31782]
[1736923684046,3.83693716,3227.2,3227.0,44.31782]
[1736923684248,2.74804489,3227.3,3227.1,0.31001]
[1736923684650,3.26880281,3227.2,3227.1,0.31001]
[1736923687655,3.26880281,3227.2,3227.0,44.0078]
[1736923687954,0.9586,3227.1,3227.0,44.31782]
[1736923688357,4.55381743,3227.1,3227.0,44.0078]
[1736923688652,4.55381743,3227.1,3227.0,3.2078]
[1736923688950,13.46280743,3227.1,3226.4,3.2078]
[1736923689149,2.74811489,3226.5,3226.4,44.31788]
[1736923689349,2.74811489,3226.5,3226.4,44.0078]
[1736923689546,6.23799103,3226.5,3226.4,40.8]
[1736923689750,5.92792103,3226.5,3226.4,40.8]
[1736923689953,5.92792103,3226.5,3226.4,41.11008]
[1736923698766,3.48987614,3226.5,3226.4,41.11008]
[1736923699665,3.48987614,3226.5,3226.4,41.58048]
[1736923703469,3.48987614,3226.5,3226.4,41.11008]
[1736923706169,2.43804489,3226.8,3226.7,0.31005]
[1736923706475,5.80996173,3226.8,3226.7,0.31005]
[1736923707074,6.12000173,3226.8,3226.7,0.31005]
[1736923707467,6.12000173,3226.8,3226.6,0.31006]
[1736923709780,5.80996173,3226.8,3226.7,0.31005]
[1736923709975,6.12000173,3226.8,3226.6,0.31006]
[1736923710372,5.80996173,3226.8,3226.3,0.4869]
[1736923710574,0.31007,3226.6,3226.4,0.31007]
[1736923711076,3.4516617,3226.5,3226.4,0.31007]
[1736923711580,3.7617317,3226.5,3226.4,0.31007]
[1736923711977,0.31007,3226.5,3226.4,0.31007]
[1736923712178,3.78396098,3226.5,3226.4,0.31007]
[1736923712875,3.47389098,3226.5,3226.4,0.31007]
[1736923713284,0.79217,3226.5,3226.4,0.31007]
[1736923713579,3.91349797,3226.5,3226.4,0.31007]
[1736923713779,0.4821,3226.5,3226.4,0.31007]
[1736923714180,3.90744735,3226.5,3226.4,0.31007]
[1736923714583,4.36144735,3226.5,3226.4,0.31007]
[1736923717483,4.57946602,3226.5,3226.4,0.31007]
[1736923718278,4.57946602,3226.5,3226.4,41.11007]
[1736923718479,3.42534735,3226.5,3226.4,41.11007]
[1736923722588,3.42534735,3226.5,3226.4,44.31787]
[1736923726797,2.74798368,3226.6,3226.4,3.51787]
[1736923726990,0.4612,3226.5,3226.4,3.51787]
[1736923727193,3.72650244,3226.5,3226.4,3.51787]
[1736923741399,4.88073433,3226.5,3226.4,3.51787]
[1736923743000,4.41953433,3226.5,3226.4,3.51787]
[1736923743597,3.2078,3227.2,3226.4,4.36203189]
[1736923743803,1.15423189,3226.9,3226.8,0.31004]
[1736923744098,3.45008602,3226.9,3226.8,0.31004]
[1736923744404,0.9796,3227.1,3227.0,0.31002]
[1736923744703,5.58391791,3227.1,3227.0,0.31002]
[1736923744999,3.2078,3227.2,3226.8,4.36203189]
[1736923745204,3.2078,3227.2,3227.1,0.31001]
[1736923745695,3.2078,3227.2,3227.1,41.11001]
[1736923746797,6.7746918,3227.2,3227.1,41.11001]
[1736923748094,7.0846918,3227.2,3227.1,41.11001]
[1736923748296,9.52155922,3227.2,3227.0,0.31002]
[1736923748893,0.31001,3227.1,3226.9,0.31002]
[1736923749097,0.4846,3227.0,3226.9,0.31002]
[1736923749302,3.9368011,3227.0,3226.9,0.31002]
[1736923757398,3.4522011,3227.0,3226.9,0.31002]
[1736923757800,3.51523517,3227.1,3226.8,44.0078]
[1736923758009,0.31001,3227.1,3226.9,0.31003]
[1736923758404,3.77057243,3227.1,3226.9,0.31003]
[1736923758608,3.77057243,3227.1,3226.8,44.0078]
[1736923758809,3.77057243,3227.1,3226.9,0.31002]
[1736923759512,3.77057243,3227.1,3226.8,44.0078]
[1736923759711,3.77057243,3227.1,3227.0,0.31002]
[1736923761713,3.77057243,3227.1,3226.9,0.31002]
[1736923762106,3.77057243,3227.1,3227.0,0.31002]
[1736923762813,3.46056243,3227.1,3227.0,0.31002]
[1736923763209,0.4872,3227.3,3227.2,0.31]
[1736923763515,6.2048,3227.5,3227.4,0.30998]
[1736923764010,6.51477,3227.5,3227.4,0.30998]
[1736923764211,7.01007,3227.5,3227.4,0.30998]
[1736923765405,1.15339687,3227.5,3227.4,0.30998]
[1736923765916,1.63799687,3227.7,3227.6,0.30996]
[1736923766308,5.02429874,3227.7,3227.6,0.30996]
[1736923766708,3.38630187,3227.7,3227.6,3.51776]
[1736923768011,4.53969874,3227.7,3227.6,3.51776]
[1736923768516,5.02309874,3227.7,3227.6,3.51776]
[1736923771312,3.86970187,3227.7,3227.6,3.51776]
[1736923773814,3.86970187,3227.7,3227.6,0.30996]
[1736923782723,3.38630187,3227.7,3227.6,0.30996]
[1736923782909,3.38630187,3227.7,3227.6,41.10996]
[1736923785520,3.2078,3228.0,3227.9,0.30993]
[1736923786422,0.4735,3228.3,3228.2,0.30991]
[1736923786725,3.95293563,3228.3,3228.2,0.30991]
[1736923791526,0.4735,3228.3,3228.2,0.30991]
[1736923796630,1.62617821,3228.3,3228.2,0.30991]
[1736923798524,0.4735,3228.3,3228.2,0.30991]
[1736923812042,0.9349,3228.5,3228.4,0.30989]
[1736923812341,4.26946454,3228.5,3228.4,4.67036821]
[1736923812543,4.26946454,3228.5,3228.4,45.47036821]
[1736923812832,1.62087821,3228.7,3228.4,45.47036821]
[1736923812833,0.4682,3228.7,3228.4,45.16047821]
[1736923813038,0.4682,3228.7,3228.6,0.30987]
[1736923813230,0.9374,3229.0,3228.9,0.30984]
[1736923813431,1.4056,3229.0,3228.9,0.30984]
[1736923816329,1.4056,3229.0,3228.9,0.80354]
[1736923817342,4.75000634,3229.0,3228.9,0.30984]
[1736923821042,5.90268455,3229.0,3228.9,0.30984]
[1736923824058,4.75000634,3229.0,3228.9,0.30984]
[1736923824353,0.4637,3229.0,3228.9,0.30984]
[1736923825359,0.9304,3229.3,3229.2,0.30981]
[1736923825554,0.489,3229.4,3229.2,0.30981]
[1736923825859,0.489,3229.4,3229.3,1.46247821]
[1736923826159,0.489,3229.4,3229.3,43.21497821]
[1736923829154,0.489,3229.4,3229.3,41.1098]
[1736923829854,3.85347341,3229.4,3229.3,41.1098]
[1736923830450,3.85347341,3229.4,3229.3,0.3098]
[1736923837472,0.9701,3229.7,3229.6,0.30977]
[1736923837865,4.24599087,3229.7,3229.6,0.30977]
[1736923841166,3.75059087,3229.7,3229.6,0.30977]
[1736923845375,4.90326908,3229.7,3229.6,0.30977]
[1736923846978,3.75059087,3229.7,3229.6,0.30977]
[1736923857583,3.75059087,3229.7,3229.2,40.8]
[1736923857884,3.75059087,3229.7,3229.6,0.30977]
[1736923858089,4.90326908,3229.7,3229.6,0.30977]
[1736923861085,3.27589087,3229.7,3229.6,0.30977]
[1736923861289,0.4797,3230.1,3230.0,0.30973]
[1736923861487,0.471,3230.4,3230.3,0.3097]
[1736923861684,0.9507,3230.4,3230.3,41.1097]
[1736923861892,4.54533678,3230.4,3230.3,41.1097]
[1736923864982,4.54533678,3230.4,3230.3,0.3097]
[1736923865690,4.85503678,3230.4,3230.2,0.30971]
[1736923865887,1.63647821,3230.3,3230.2,0.30971]
[1736923866292,5.21162498,3230.3,3230.2,0.30971]
[1736923866786,4.05894677,3230.3,3230.2,0.30971]
[1736923867085,4.05894677,3230.3,3230.2,1.46238821]
[1736923867691,4.05894677,3230.3,3230.2,42.26238821]
[1736923869392,4.05894677,3230.3,3230.2,41.10971]
[1736923870892,4.05894677,3230.3,3230.2,0.30971]
[1736923871797,0.30972,3230.2,3230.0,0.30973]
[1736923871997,0.76732,3230.1,3229.9,3.2078]
[1736923872201,2.43196855,3230.0,3229.9,3.51754]
[1736923872600,5.73289233,3230.0,3229.4,40.8]
[1736923872894,0.4951,3229.9,3229.8,0.30974]
[1736923873396,3.87884116,3229.9,3229.8,0.30974]
[1736923876394,3.87884116,3229.9,3229.7,0.30976]
[1736923876699,0.4613,3229.8,3229.7,0.30976]
[1736923877190,3.96608555,3229.8,3229.7,0.30976]
[1736923880194,7.17388555,3229.8,3229.7,0.30976]
[1736923889919,3.96608555,3229.8,3229.7,0.30976]
[1736923891622,7.17388555,3229.8,3229.7,0.30976]
[1736923897418,8.32581356,3229.8,3229.7,0.30976]
[1736923897729,5.11801356,3229.8,3229.7,0.30976]
[1736923898026,3.50478555,3229.8,3229.7,0.30976]
[1736923898717,3.40457089,3229.9,3229.8,0.30975]
[1736923898925,4.85682801,3230.2,3229.7,1.15192801]
[1736923899127,4.85682801,3230.2,3230.1,0.30972]
[1736923899424,7.05342477,3230.2,3230.1,0.30972]
[1736923899624,3.84562477,3230.2,3230.1,0.30972]
[1736923900620,3.34852477,3230.2,3230.1,0.30972]
[1736923901020,3.33677201,3230.3,3230.0,1.4299]
[1736923901218,3.33677201,3230.3,3230.2,0.30971]
[1736923901421,0.9137,3230.4,3230.3,0.3097]
[1736923901826,4.4853259,3230.4,3230.3,0.3097]
[1736923903825,3.5716259,3230.4,3230.3,0.3097]
[1736923904427,3.56599417,3230.5,3230.1,1.08404]
[1736923904629,2.74236068,3230.9,3230.1,0.77432]
[1736923904829,2.74236068,3230.9,3230.7,0.30966]
[1736923905031,3.56599417,3230.8,3230.7,0.30966]
[1736923905531,3.87565417,3230.8,3230.7,0.30967]
[1736923905732,3.87565417,3230.8,3230.1,0.77432]
[1736923905733,3.87565417,3230.8,3230.6,0.30967]
[1736923906528,0.30967,3230.7,3230.5,0.30968]
[1736923906734,0.4587,3230.6,3230.5,0.30968]
[1736923907034,4.40412203,3230.6,3230.5,0.30968]
[1736923910827,4.40412203,3230.6,3230.0,1.4299]
[1736923911032,4.40412203,3230.6,3230.4,0.30969]
[1736923911533,4.40412203,3230.6,3230.5,40.8]
[1736923912734,4.71380203,3230.6,3230.4,0.30969]
[1736923914844,0.30969,3230.5,3230.4,0.30969]
[1736923915234,3.8360495,3230.5,3230.4,0.30969]
[1736923916244,3.5263595,3230.5,3230.4,0.30969]
[1736923919344,4.67762423,3230.5,3230.4,0.30969]
[1736923921742,3.5263595,3230.5,3230.4,0.30969]
[1736923922337,3.5263595,3230.5,3230.4,0.77699]
[1736923922544,3.52556214,3230.6,3230.5,0.30968]
[1736923922738,1.46093473,3230.7,3230.5,0.30968]
[1736923922739,1.46093473,3230.7,3230.5,0.4652]
[1736923922944,0.4579,3230.9,3230.5,1.61646473]
[1736923923142,3.6852,3231.0,3230.9,0.30965]
[1736923923143,0.4774,3231.0,3230.9,0.30965]
[1736923923342,1.95029473,3231.1,3230.7,1.15126473]
[1736923923343,1.64066473,3231.1,3230.7,1.15126473]
[1736923923644,1.64066473,3231.1,3231.0,0.30964]
[1736923924050,5.20643396,3231.1,3231.0,0.30964]
[1736923924345,5.51606396,3231.1,3230.8,0.4673]
[1736923924544,4.05516923,3231.1,3230.8,0.4673]
[1736923924739,4.05516923,3231.1,3231.0,0.30964]
[1736923925548,5.20643396,3231.1,3231.0,0.30964]
[1736923927750,3.2078,3231.4,3230.9,1.15126473]
[1736923928048,3.80349228,3231.3,3231.2,0.30962]
[1736923928250,3.80349228,3231.3,3231.2,41.10962]
[1736923930247,3.30359228,3231.3,3231.2,41.10962]
[1736923930443,3.30359228,3231.3,3231.2,41.57922]
[1736923930947,3.80139228,3231.3,3231.2,41.57922]
[1736923933253,3.30359228,3231.3,3231.2,41.57922]
[1736923934953,1.60866473,3231.7,3231.2,41.2696]
[1736923935153,3.46185475,3231.4,3231.3,0.30961]
[1736923935453,3.46185475,3231.6,3231.5,0.30959]
[1736923935653,1.60866473,3231.7,3231.6,0.30958]
[1736923935954,4.93655067,3231.7,3231.6,0.30958]
[1736923936159,5.24613067,3231.7,3231.5,0.30958]
[1736923936344,1.15126473,3231.6,3231.5,0.30959]
[1736923936653,4.3806813,3231.6,3231.5,0.30959]
[1736923942558,3.22941657,3231.6,3231.5,0.30959]
[1736923944360,3.22941657,3231.6,3231.5,1.46085473]
[1736923944949,3.44838786,3231.7,3231.6,0.30958]
[1736923945155,0.4888,3231.8,3231.6,0.4854]
[1736923945355,0.4888,3231.8,3231.7,0.30957]
[1736923945757,3.7331493,3231.8,3231.7,0.30957]
[1736923947362,3.2443493,3231.8,3231.7,0.30957]
[1736923949258,4.39561403,3231.8,3231.7,0.30957]
[1736923951675,3.2443493,3231.8,3231.7,0.30957]
[1736923968477,3.2443493,3231.8,3231.7,1.46083473]
[1736923968878,0.002,3232.0,3231.9,0.30955]
[1736923969082,0.4925,3232.4,3232.3,1.46077473]
[1736923969384,0.4673,3232.9,3232.3,1.46077473]
[1736923969385,0.4673,3232.9,3232.8,0.30947]
[1736923969580,0.9534,3232.9,3232.8,0.30947]
[1736923969782,4.35995051,3232.9,3232.8,0.30947]
[1736923970676,4.82965051,3232.9,3232.8,0.30947]
[1736923970875,5.98091524,3232.9,3232.8,0.30947]
[1736923971274,4.82965051,3232.9,3232.8,1.46073473]
[1736923971480,4.82965051,3232.9,3232.8,0.30947]
[1736923973290,0.4769,3233.3,3233.2,0.30943]
[1736923973589,4.83744086,3233.3,3233.2,0.30943]
[1736923974387,5.98870559,3233.3,3233.2,41.10943]
[1736923974983,4.83744086,3233.3,3233.2,42.26069473]
[1736923976384,4.36054086,3233.3,3233.2,42.26069473]
[1736923977484,4.36054086,3233.3,3233.2,41.10943]
[1736923978293,0.4942,3233.6,3233.5,0.3094]
[1736923978591,4.3577356,3233.6,3233.5,0.3094]
[1736923979489,3.2078,3234.4,3233.5,2.42740694]
[1736923979784,4.24925275,3234.1,3234.0,0.30935]
[1736923980182,0.9462,3234.1,3234.0,0.30935]
[1736923980390,4.24925275,3234.1,3234.0,0.30935]
[1736923989288,4.24925275,3234.1,3233.6,3.2078]
[1736923989488,4.55859275,3234.1,3233.9,0.30935]
[1736923989693,4.24925275,3234.1,3233.9,0.30935]
[1736923989891,4.24925275,3234.1,3233.6,3.2078]
[1736923990096,0.30936,3233.9,3233.7,0.30937]
[1736923990292,3.2078,3233.8,3233.2,40.8]
[1736923990492,0.3094,3233.6,3233.3,0.30941]
[1736923990795,0.30941,3233.4,3233.2,41.10942]
[1736923991195,3.80906522,3233.3,3233.2,41.10942]
[1736923991393,3.80906522,3233.3,3233.2,41.10943]
[1736923993097,3.80906522,3233.3,3233.2,40.8]
[1736923993293,4.11848522,3233.3,3233.2,40.8]
[1736923994588,6.54589216,3233.3,3233.2,40.8]
[1736923995090,0.30944,3233.1,3232.5,3.6724]
[1736923995288,0.30944,3233.1,3232.9,0.30945]
[1736923995490,3.44500871,3233.0,3232.9,0.30945]
[1736923995893,3.5385569,3233.2,3233.0,0.30944]
[1736923996200,0.30943,3233.2,3233.0,0.30944]
[1736923996700,3.2291269,3233.1,3233.0,0.30944]
[1736923997997,3.44251365,3233.2,3233.0,0.30944]
[1736923998199,0.30943,3233.2,3233.0,0.30944]
[1736923998500,3.75194365,3233.2,3233.0,0.30944]
[1736923998896,3.44251365,3233.2,3233.0,0.30944]
[1736923999695,3.44251365,3233.2,3233.1,0.30944]
[1736924000197,0.00389429,3233.3,3233.0,1.3942]
[1736924000389,0.00389429,3233.3,3233.2,2.73683694]
[1736924000590,0.00389429,3233.3,3233.2,0.30943]
[1736924000792,0.00389429,3233.3,3233.2,41.10943]
[1736924001787,0.00389429,3233.3,3233.2,43.53683694]
[1736924008298,0.00389429,3233.3,3233.2,46.74463694]
[1736924013200,0.4618,3234.0,3233.9,0.30936]
[1736924013408,0.4618,3234.0,3233.9,3.51716]
[1736924013605,3.87238468,3234.0,3233.9,3.51716]
[1736924013904,3.87238468,3234.0,3233.9,44.31716]
[1736924021410,5.02126876,3234.0,3233.9,44.31716]
[1736924025124,5.02126876,3234.0,3233.9,44.0078]
[1736924025323,5.33061876,3234.0,3233.9,44.0078]
[1736924026626,5.33061876,3234.0,3233.9,40.8]
[1736924026824,5.33061876,3234.0,3233.9,41.10936]
[1736924027025,5.02126876,3234.0,3233.9,41.10936]
[1736924033936,5.33061876,3234.0,3233.9,41.10936]
[1736924035236,5.02126876,3234.0,3233.9,41.10936]
[1736924038140,0.38247897,3234.0,3233.9,44.31716]
[1736924039942,2.02316305,3234.0,3233.9,44.31716]
[1736924040240,2.52116305,3234.0,3233.9,44.31716]
[1736924040940,2.52116305,3234.0,3233.9,44.0078]
[1736924041239,1.37227897,3234.0,3233.9,44.31717]
[1736924041438,1.37227897,3234.0,3233.9,44.0078]
[1736924041439,2.52116305,3234.0,3233.9,44.0078]
[1736924041639,2.52116305,3234.0,3233.9,44.31718]
[1736924042028,2.83054305,3234.0,3233.9,40.8]
[1736924042434,2.02316305,3234.0,3233.9,41.10939]
[1736924042632,2.02316305,3234.0,3233.9,40.8]
[1736924042836,2.33254305,3234.0,3233.9,40.8]
[1736924043334,1.84074305,3234.0,3233.9,40.8]
[1736924043530,1.53136305,3234.0,3233.9,41.56649]
[1736924043734,1.84074305,3234.0,3233.9,40.8]
[1736924043934,2.33214305,3234.0,3233.9,40.8]
[1736924044736,3.48102713,3234.0,3233.9,40.8]
[1736924044940,3.88703344,3234.0,3233.9,40.8]
[1736924045836,2.73814936,3234.0,3233.9,40.8]
[1736924046042,2.33214305,3234.0,3233.9,40.8]
[1736924046439,3.48102713,3234.0,3233.9,40.8]
[1736924046635,2.73814936,3234.0,3233.9,40.8]
[1736924046835,2.33214305,3234.0,3233.9,40.8]
[1736924048344,5.53994305,3234.0,3233.9,40.8]
[1736924048539,5.94594936,3234.0,3233.9,40.8]
[1736924049247,7.09483344,3234.0,3233.9,40.8]
[1736924049447,5.94594936,3234.0,3233.9,40.8]
[1736924051945,3.59027897,3234.0,3233.9,41.10939]
[1736924053750,3.89965897,3234.0,3233.9,41.10939]
[1736924054748,0.69185897,3234.0,3233.9,41.10939]
[1736924055751,0.69185897,3234.0,3233.9,40.8]
[1736924059061,1.16535897,3234.0,3233.9,40.8]
[1736924060973,0.30942,3233.6,3233.5,0.4571]
[1736924061264,4.8912364,3233.6,3233.5,0.4571]
[1736924061465,4.8912364,3233.6,3233.5,41.2571]
[1736924061657,4.8912364,3233.6,3233.5,41.56653]
[1736924061862,4.8912364,3233.6,3233.5,41.2571]
[1736924062469,4.8912364,3233.6,3233.5,41.56653]
[1736924063063,4.8912364,3233.6,3233.5,41.2571]
[1736924064270,4.8912364,3233.6,3233.5,41.56653]
[1736924064471,4.5818164,3233.6,3233.5,41.56653]
[1736924064971,4.8912364,3233.6,3233.5,41.56653]
[1736924065573,4.8912364,3233.6,3233.5,41.2571]
[1736924065874,4.5818164,3233.6,3233.5,41.56653]
[1736924066774,4.8912364,3233.6,3233.5,41.56653]
[1736924068667,4.5818164,3233.6,3233.5,41.2571]
[1736924068868,4.8912364,3233.6,3233.3,3.51724]
[1736924069063,1.14888408,3233.4,3233.3,3.51724]
[1736924069273,1.14888408,3233.4,3233.3,3.2078]
[1736924069473,4.85809838,3233.4,3233.3,44.31725]
[1736924070477,3.3997743,3233.4,3233.3,44.31725]
[1736924070877,3.4230934,3233.5,3233.4,0.30943]
[1736924071478,1.45830408,3233.6,3233.4,0.30943]
[1736924071679,3.4230934,3233.5,3233.4,0.30943]
[1736924072770,3.4230934,3233.5,3233.4,41.10943]
[1736924073472,3.7325234,3233.5,3233.4,40.8]
[1736924073974,4.1860234,3233.5,3233.4,40.8]
[1736924074172,4.1860234,3233.5,3233.4,41.10944]
[1736924074572,4.1860234,3233.5,3233.4,40.8]
[1736924080475,5.02547748,3233.5,3233.4,40.8]
[1736924080780,5.33489748,3233.5,3233.4,41.10943]